fUST/lending_fUST_20250218
["ID","MTS","AMOUNT","RATE_DAILY","PERIOD"]
[353412246,1739818256505,-500.0,0.00014684,2]
[353412248,1739818256515,-556.07,0.00014684,2]
[353412249,1739818256524,-626.95,0.00014684,2]
[353412251,1739818256533,-500.0,0.00014684,2]
[353412253,1739818256543,-1191.53,0.00014684,2]
[353412255,1739818256554,-500.0,0.00014684,2]
[353412257,1739818256563,-9446.63,0.00014684,2]
[353412260,1739818256573,-993.66,0.00014684,2]
[353412262,1739818256583,-500.0,0.00014684,2]
[353412264,1739818256594,-500.0,0.00014684,2]
[353412266,1739818256603,-510.12,0.00014684,2]
[353412268,1739818256613,-531.19,0.00014684,2]
[353412270,1739818256623,-788.49384026,0.00014687,2]
[353412272,1739818256633,-90840.0071617,0.0001469,2]
[353412273,1739818256644,-1000.0,0.00014696,2]
[353412275,1739818256653,-38638.37539949,0.000147,2]
[353412277,1739818256663,-3000.00000001,0.000147,2]
[353412279,1739818256672,-196.397687,0.000147,2]
[353412281,1739818256682,-196.397687,0.000147,2]
[353412283,1739818256692,-151.0,0.000147,2]
[353412285,1739818256703,-600.0,0.000147,2]
[353412287,1739818256712,-1000.0,0.00014728,2]
[353412289,1739818256722,-342.0,0.0001474,2]
[353412291,1739818256732,-828.75654214,0.00014762,2]
[353412293,1739818256741,-465.04564709,0.00014765,2]
[353412295,1739818256752,-500.0,0.00014767,2]
[353412297,1739818256761,-500.0,0.00014767,2]
[353412299,1739818256771,-941.89,0.00014767,2]
[353412301,1739818256781,-4804.97,0.00014767,2]
[353412303,1739818256791,-500.0,0.00014767,2]
[353412305,1739818256800,-594.66,0.00014767,2]
[353412307,1739818256810,-541.65,0.00014767,2]
[353412309,1739818256819,-500.0,0.00014767,2]
[353412311,1739818256829,-500.0,0.00014767,2]
[353412313,1739818256839,-625.21,0.00014767,2]
[353412315,1739818256849,-500.0,0.00014767,2]
[353412317,1739818256858,-962.82,0.00014767,2]
[353412319,1739818256868,-1698.84,0.00014767,2]
[353412321,1739818256878,-500.0,0.00014767,2]
[353412323,1739818256887,-4840.44,0.00014767,2]
[353412324,1739818256896,-500.0,0.00014767,2]
[353412325,1739818256906,-500.0,0.00014767,2]
[353412327,1739818256915,-556.07,0.00014767,2]
[353412329,1739818256925,-560.62679572,0.00014767,2]
[353412331,1739818256938,-66.32320428,0.00014767,2]
[353412333,1739818256948,-500.0,0.00014767,2]
[353412335,1739818256957,-1191.53,0.00014767,2]
[353412336,1739818256967,-169.94,0.00014767,2]
[353412338,1739818256978,-9446.63,0.00014767,2]
[353412340,1739818256987,-993.66,0.00014767,2]
[353412342,1739818256997,-500.0,0.00014767,2]
[353412344,1739818257007,-500.0,0.00014767,2]
[353412346,1739818257016,-510.12,0.00014767,2]
[353412348,1739818257026,-531.19,0.00014767,2]
[353412350,1739818257036,-1000.0,0.00014769,2]
[353412352,1739818257046,-500.0,0.00014773,2]
[353412362,1739818257160,-500.0,0.00014773,2]
[353412363,1739818257170,-500.0,0.00014773,2]
[353412365,1739818257180,-500.0,0.00014773,2]
[353412366,1739818257190,-500.0,0.00014773,2]
[353412368,1739818257200,-788.49384026,0.00014787,2]
[353412370,1739818257210,-1000.0,0.00014787,2]
[353412372,1739818257219,-196.397687,0.00014799,2]
[353412374,1739818257228,-196.397687,0.00014799,2]
[353412376,1739818257238,-11555.0,0.000148,5]
[353412378,1739818257248,-3000.0,0.000148,2]
[353412380,1739818257258,-151.0,0.000148,2]
[353412382,1739818257267,-151.0,0.000148,2]
[353412384,1739818257278,-196.397687,0.000148,2]
[353412386,1739818257287,-196.397687,0.000148,2]
[353412388,1739818257296,-151.0,0.000148,2]
[353412390,1739818257306,-151.0,0.000148,2]
[353412392,1739818257316,-500.0,0.00014849,2]
[353412394,1739818257326,-500.0,0.00014849,2]
[353412396,1739818257336,-941.89,0.00014849,2]
[353412398,1739818257346,-4804.97,0.00014849,2]
[353412400,1739818257356,-500.0,0.00014849,2]
[353412402,1739818257365,-594.66,0.00014849,2]
[353412404,1739818257375,-541.65,0.00014849,2]
[353412406,1739818257384,-500.0,0.00014849,2]
[353412408,1739818257393,-500.0,0.00014849,2]
[353412410,1739818257403,-625.21,0.00014849,2]
[353412412,1739818257413,-182.68,0.00014849,2]
[353412414,1739818257425,-962.82,0.00014849,2]
[353412415,1739818257435,-1698.84,0.00014849,2]
[353412417,1739818257445,-500.0,0.00014849,2]
[353412419,1739818257455,-4840.44,0.00014849,2]
[353412420,1739818257466,-500.0,0.00014849,2]
[353412421,1739818257475,-500.0,0.00014849,2]
[353412422,1739818257485,-556.07,0.00014849,2]
[353412423,1739818257496,-626.95,0.00014849,2]
[353412424,1739818257506,-500.0,0.00014849,2]
[353412425,1739818257515,-1191.53,0.00014849,2]
[353412426,1739818257525,-9446.63,0.00014849,2]
[353412427,1739818257535,-993.66,0.00014849,2]
[353412428,1739818257545,-500.0,0.00014849,2]
[353412429,1739818257554,-500.0,0.00014849,2]
[353412430,1739818257563,-510.12,0.00014849,2]
[353412431,1739818257573,-531.19,0.00014849,2]
[353412432,1739818257582,-600.0,0.0001485,2]
[353412433,1739818257591,-274.70902027,0.00014873,2]
[353412435,1739818257601,-788.49384026,0.00014887,2]
[353412437,1739818257611,-1283.44032158,0.00014899,2]
[353412439,1739818257621,-151.0,0.00014899,2]
[353412441,1739818257631,-183.1,0.000149,2]
[353412443,1739818257645,-151.0,0.000149,2]
[353412446,1739818257657,-151.0,0.000149,2]
[353412448,1739818257667,-156.55,0.000149,2]
[353412449,1739818257677,-196.397687,0.000149,2]
[353412451,1739818257687,-196.397687,0.000149,2]
[353412453,1739818257697,-151.0,0.000149,2]
[353412455,1739818257708,-432.36699328,0.000149,2]
[353412457,1739818257717,-432.36699328,0.000149,2]
[353412459,1739818257727,-432.36699328,0.000149,2]
[353412461,1739818257737,-61044.10478372,0.000149,2]
[353412469,1739818257809,-326513.24372084,0.000149,2]
[353412471,1739818257822,-5820.39826528,0.000149,2]
[353412473,1739818257834,-126356.03954511,0.000149,2]
[353412476,1739818257846,-596.59801914,0.000149,2]
[353412478,1739818257858,-1500.0,0.000149,2]
[353412480,1739818257870,-2859.9,0.000149,2]
[353412482,1739818257882,-674.62973335,0.000149,2]
[353412483,1739818257896,-4270.02465634,0.000149,2]
[353412484,1739818257907,-3987.57932694,0.000149,2]
[353412485,1739818258009,-538.542512,0.00013699,2]
[353412486,1739818258019,-538.542512,0.0001378,2]
[353412487,1739818258028,-538.542512,0.0001378,2]
[353412488,1739818258039,-3448.04769396,0.00013861,5]
[353412489,1739818258051,-63057.35007492,0.00013861,5]
[353412490,1739818258060,-150.0,0.00013916,2]
[353412491,1739818258071,-500.0,0.00014191,2]
[353412492,1739818258080,-500.0,0.00014273,2]
[353412493,1739818258090,-500.0,0.00014356,2]
[353412494,1739818258099,-500.0,0.00014438,2]
[353412495,1739818258109,-500.0,0.0001452,2]
[353412496,1739818258118,-178.92,0.00014602,2]
[353412497,1739818258128,-114334.05011228,0.000149,2]
[353412498,1739818258139,-285.57,0.00014931,2]
[353412499,1739818258149,-500.0,0.00014931,2]
[353412500,1739818258160,-941.89,0.00014931,2]
[353412501,1739818258169,-4804.97,0.00014931,2]
[353412502,1739818258179,-500.0,0.00014931,2]
[353412503,1739818258188,-594.66,0.00014931,2]
[353412505,1739818258197,-541.65,0.00014931,2]
[353412507,1739818258207,-500.0,0.00014931,2]
[353412508,1739818258216,-500.0,0.00014931,2]
[353412509,1739818258226,-625.21,0.00014931,2]
[353412510,1739818258235,-962.82,0.00014931,2]
[353412511,1739818258245,-1698.84,0.00014931,2]
[353412512,1739818258254,-500.0,0.00014931,2]
[353412513,1739818258264,-4840.44,0.00014931,2]
[353412514,1739818258275,-416.12,0.00014931,2]
[353412516,1739818258284,-500.0,0.00014931,2]
[353412518,1739818258294,-556.07,0.00014931,2]
[353412520,1739818258304,-626.95,0.00014931,2]
[353412522,1739818258314,-500.0,0.00014931,2]
[353412524,1739818258324,-1191.53,0.00014931,2]
[353412526,1739818258333,-9446.63,0.00014931,2]
[353412528,1739818258342,-993.66,0.00014931,2]
[353412530,1739818258351,-500.0,0.00014931,2]
[353412532,1739818258360,-500.0,0.00014931,2]
[353412534,1739818258369,-510.12,0.00014931,2]
[353412536,1739818258378,-531.19,0.00014931,2]
[353412538,1739818258389,-3690.2900953,0.00014952,2]
[353412540,1739818258399,-611.21977752,0.00014977,2]
[353412542,1739818258408,-788.49384026,0.00014987,2]
[353412544,1739818258422,-42293.2379863,0.00015,4]
[353412546,1739818258431,-113371.20377841,0.00015,2]
[353412548,1739818258441,-845.82204662,0.00015,2]
[353412550,1739818258450,-17003.0,0.00015,2]
[353412552,1739818258461,-9054.93664214,0.00015,2]
[353412554,1739818258470,-1000.000001,0.00015,2]
[353412556,1739818258480,-1002.1915338,0.00015,2]
[353412558,1739818258490,-404.0,0.00015,30]
[353412560,1739818258501,-196.397687,0.00015,2]
[353412562,1739818258511,-196.397687,0.00015,2]
[353412564,1739818258520,-600.0,0.00015,2]
[353412566,1739818258530,-420.0,0.00015009,2]
[353412568,1739818258540,-500.0,0.00015013,2]
[353412570,1739818258549,-941.89,0.00015013,2]
[353412572,1739818258558,-4804.97,0.00015013,2]
[353412574,1739818258568,-500.0,0.00015013,2]
[353412576,1739818258577,-594.66,0.00015013,2]
[353412578,1739818258587,-541.65,0.00015013,2]
[353412580,1739818258597,-500.0,0.00015013,2]
[353412582,1739818258607,-500.0,0.00015013,2]
[353412584,1739818258616,-625.21,0.00015013,2]
[353412586,1739818258625,-962.82,0.00015013,2]
[353412588,1739818258635,-1698.84,0.00015013,2]
[353412590,1739818258644,-500.0,0.00015013,2]
[353412591,1739818258653,-4840.44,0.00015013,2]
[353412593,1739818258662,-500.0,0.00015013,2]
[353412596,1739818258673,-556.07,0.00015013,2]
[353412598,1739818258682,-626.95,0.00015013,2]
[353412600,1739818258691,-500.0,0.00015013,2]
[353412601,1739818258701,-1191.53,0.00015013,2]
[353412602,1739818258710,-9446.63,0.00015013,2]
[353412603,1739818258720,-993.66,0.00015013,2]
[353412604,1739818258729,-479.55,0.00015013,2]
[353412605,1739818258739,-500.0,0.00015013,2]
[353412606,1739818258750,-510.12,0.00015013,2]
[353412607,1739818258760,-531.19,0.00015013,2]
[353412608,1739818258769,-788.49384026,0.00015087,2]
[353412609,1739818258780,-500.0,0.00015095,2]
[353412610,1739818258790,-941.89,0.00015095,2]
[353412611,1739818258800,-4804.97,0.00015095,2]
[353412612,1739818258810,-500.0,0.00015095,2]
[353412613,1739818258821,-594.66,0.00015095,2]
[353412614,1739818258830,-541.65,0.00015095,2]
[353412615,1739818258841,-500.0,0.00015095,2]
[353412617,1739818258850,-500.0,0.00015095,2]
[353412619,1739818258861,-625.21,0.00015095,2]
[353412621,1739818258870,-962.82,0.00015095,2]
[353412623,1739818258880,-1698.84,0.00015095,2]
[353412625,1739818258891,-500.0,0.00015095,2]
[353412627,1739818258901,-4840.44,0.00015095,2]
[353412629,1739818258912,-500.0,0.00015095,2]
[353412631,1739818258921,-556.07,0.00015095,2]
[353412633,1739818258931,-626.95,0.00015095,2]
[353412635,1739818258940,-312.58,0.00015095,2]
[353412637,1739818258950,-1191.53,0.00015095,2]
[353412639,1739818258960,-9446.63,0.00015095,2]
[353412641,1739818258970,-993.66,0.00015095,2]
[353412643,1739818258982,-500.0,0.00015095,2]
[353412645,1739818258991,-510.12,0.00015095,2]
[353412647,1739818259000,-531.19,0.00015095,2]
[353412649,1739818259010,-150.21,0.00015137,2]
[353412651,1739818259019,-150.21,0.00015137,2]
[353412653,1739818259029,-152.45469235,0.00015137,2]
[353412655,1739818259039,-150.21,0.00015137,2]
[353412657,1739818259048,-150.21,0.00015137,2]
[353412659,1739818259058,-150.21,0.00015137,2]
[353412661,1739818259068,-150.48257331,0.00015137,2]
[353412663,1739818259078,-500.0,0.00015137,2]
[353412665,1739818259088,-500.0,0.00015137,2]
[353412667,1739818259098,-150.21,0.00015137,2]
[353412669,1739818259108,-150.21,0.00015137,2]
[353412671,1739818259118,-150.21,0.00015137,2]
[353412673,1739818259127,-600.0,0.0001515,2]
[353412675,1739818259139,-500.0,0.00015178,2]
[353412677,1739818259148,-941.89,0.00015178,2]
[353412679,1739818259158,-4804.97,0.00015178,2]
[353412680,1739818259167,-500.0,0.00015178,2]
[353412683,1739818259177,-594.66,0.00015178,2]
[353412685,1739818259187,-541.65,0.00015178,2]
[353412687,1739818259197,-302.3,0.00015178,2]
[353412688,1739818259206,-427.79,0.00015178,2]
[353412691,1739818259216,-625.21,0.00015178,2]
[353412693,1739818259226,-962.82,0.00015178,2]
[353412695,1739818259235,-1698.84,0.00015178,2]
[353412697,1739818259244,-500.0,0.00015178,2]
[353412699,1739818259254,-4840.44,0.00015178,2]
[353412701,1739818259263,-500.0,0.00015178,2]
[353412703,1739818259272,-626.95,0.00015178,2]
[353412705,1739818259282,-556.07,0.00015178,2]
[353412707,1739818259293,-1191.53,0.00015178,2]
[353412709,1739818259302,-9446.63,0.00015178,2]
[353412711,1739818259311,-993.66,0.00015178,2]
[353412713,1739818259321,-456.9,0.00015178,2]
[353412725,1739818259430,-510.12,0.00015178,2]
[353412727,1739818259441,-531.19,0.00015178,2]
[353412729,1739818259450,-788.49384026,0.00015187,2]
[353412731,1739818259459,-1000.0,0.00015221,2]
[353412733,1739818259470,-1000.0,0.00015221,2]
[353412735,1739818259479,-1000.0,0.00015221,2]
[353412737,1739818259488,-941.89,0.0001526,2]
[353412739,1739818259498,-2318.7506947,0.0001526,2]
[353412741,1739818259511,-2486.2193053,0.0001526,2]
[353412743,1739818259520,-423.81,0.0001526,2]
[353412745,1739818259529,-594.66,0.0001526,2]
[353412747,1739818259539,-541.65,0.0001526,2]
[353412749,1739818259548,-625.21,0.0001526,2]
[353412751,1739818259557,-962.82,0.0001526,2]
[353412753,1739818259567,-1698.84,0.0001526,2]
[353412755,1739818259577,-464.14,0.0001526,2]
[353412757,1739818259586,-4840.44,0.0001526,2]
[353412760,1739818259596,-500.0,0.0001526,2]
[353412762,1739818259606,-626.95,0.0001526,2]
[353412764,1739818259615,-556.07,0.0001526,2]
[353412766,1739818259625,-1191.53,0.0001526,2]
[353412768,1739818259634,-9446.63,0.0001526,2]
[353412770,1739818259645,-993.66,0.0001526,2]
[353412772,1739818259654,-510.12,0.0001526,2]
[353412774,1739818259663,-531.19,0.0001526,2]
[353412776,1739818259673,-788.49384026,0.00015287,2]
[353412778,1739818259683,-600.0,0.000153,2]
[353412780,1739818259692,-1000.0,0.00015321,2]
[353412782,1739818259701,-1065.20107158,0.00015321,2]
[353412784,1739818259711,-1000.0,0.00015321,2]
[353412786,1739818259720,-3690.2900953,0.00015321,2]
[353412788,1739818259730,-500.0,0.00015325,2]
[353412790,1739818259740,-196.397687,0.00015342,2]
[353412792,1739818259749,-196.397687,0.00015342,2]
[353412793,1739818259759,-941.89,0.00015342,2]
[353412795,1739818259768,-4804.97,0.00015342,2]
[353412798,1739818259778,-594.66,0.00015342,2]
[353412799,1739818259787,-541.65,0.00015342,2]
[353412801,1739818259797,-625.21,0.00015342,2]
[353412804,1739818259807,-962.82,0.00015342,2]
[353412805,1739818259816,-1698.84,0.00015342,2]
[353412808,1739818259826,-4840.44,0.00015342,2]
[353412810,1739818259836,-640.74,0.00015342,2]
[353412812,1739818259846,-626.95,0.00015342,2]
[353412814,1739818259855,-556.07,0.00015342,2]
[353412816,1739818259866,-1191.53,0.00015342,2]
[353412818,1739818259875,-9446.63,0.00015342,2]
[353412820,1739818259885,-993.66,0.00015342,2]
[353412822,1739818259897,-510.12,0.00015342,2]
[353412824,1739818259906,-531.19,0.00015342,2]
[353412826,1739818259916,-407.6647821,0.00015387,2]
[353412829,1739818259937,-377.54779819,0.00015387,2]
[353412831,1739818259948,-3.28125997,0.00015387,2]
[353412833,1739818259958,-150.21,0.00015411,2]
[353412835,1739818259969,-150.21,0.00015411,2]
[353412837,1739818259978,-150.21,0.00015411,2]
[353412839,1739818259988,-150.21,0.00015411,2]
[353412841,1739818259999,-500.0,0.00015411,2]
[353412844,1739818260009,-787.26764671,0.00015411,2]
[353412846,1739818260019,-150.21,0.00015411,2]
[353412848,1739818260029,-150.21,0.00015411,2]
[353412850,1739818260039,-941.89,0.00015424,2]
[353412852,1739818260048,-554.82963804,0.00015424,2]
[353412856,1739818260081,-506.06236576,0.00015424,2]
[353412878,1739818260285,-500.0,0.00013698,2]
[353412880,1739818260295,-500.0,0.00013698,2]
[353412882,1739818260305,-500.0,0.00013698,2]
[353412884,1739818260315,-500.0,0.00013698,2]
[353412886,1739818260324,-166.39289694,0.00013698,2]
[353412888,1739818260333,-500.0,0.00013698,2]
[353412890,1739818260343,-538.542512,0.00013699,2]
[353412892,1739818260352,-500.0,0.0001378,2]
[353412894,1739818260361,-538.542512,0.0001378,2]
[353412896,1739818260371,-538.542512,0.0001378,2]
[353412898,1739818260381,-500.0,0.0001378,2]
[353412900,1739818260392,-538.542512,0.00013862,2]
[353412902,1739818260401,-538.542512,0.00013862,2]
[353412904,1739818260411,-538.542512,0.00013863,2]
[353412906,1739818260421,-538.542512,0.00013863,2]
[353412908,1739818260433,-538.542512,0.00013863,2]
[353412910,1739818260442,-500.0,0.00013863,2]
[353412912,1739818260452,-538.542512,0.00014027,2]
[353412914,1739818260463,-538.542512,0.00014109,2]
[353412916,1739818260472,-538.542512,0.00014356,2]
[353412917,1739818260481,-538.542512,0.0001452,2]
[353412918,1739818260490,-3744.0779962,0.00015424,2]
[353412919,1739818260501,-594.66,0.00015424,2]
[353412920,1739818260511,-541.65,0.00015424,2]
[353412922,1739818260520,-625.21,0.00015424,2]
[353412924,1739818260530,-962.82,0.00015424,2]
[353412926,1739818260539,-1698.84,0.00015424,2]
[353412928,1739818260549,-4840.44,0.00015424,2]
[353412930,1739818260558,-556.07,0.00015424,2]
[353412932,1739818260568,-626.95,0.00015424,2]
[353412934,1739818260578,-1191.53,0.00015424,2]
[353412936,1739818260587,-9446.63,0.00015424,2]
[353412938,1739818260597,-993.66,0.00015424,2]
[353412940,1739818260606,-510.12,0.00015424,2]
[353412942,1739818260615,-531.19,0.00015424,2]
[353412944,1739818260625,-2200.0,0.00015445,2]
[353412946,1739818260634,-601.96427347,0.0001545,2]
[353412948,1739818260646,-788.49384026,0.00015487,2]
[353412950,1739818260656,-941.89,0.00015506,2]
[353412952,1739818260665,-4804.97,0.00015506,2]
[353412954,1739818260675,-594.66,0.00015506,2]
[353412956,1739818260685,-541.65,0.00015506,2]
[353412958,1739818260694,-625.21,0.00015506,2]
[353412960,1739818260704,-962.82,0.00015506,2]
[353412962,1739818260713,-1698.84,0.00015506,2]
[353412965,1739818260724,-4840.44,0.00015506,2]
[353412967,1739818260733,-556.07,0.00015506,2]
[353412969,1739818260743,-626.95,0.00015506,2]
[353412971,1739818260752,-1191.53,0.00015506,2]
[353412973,1739818260761,-9446.63,0.00015506,2]
[353412975,1739818260770,-993.66,0.00015506,2]
[353412977,1739818260779,-510.12,0.00015506,2]
[353412979,1739818260789,-531.19,0.00015506,2]
[353412981,1739818260799,-788.49384026,0.00015587,2]
[353412983,1739818260809,-941.9,0.00015589,2]
[353412985,1739818260819,-4805.11,0.00015589,2]
[353412987,1739818260828,-594.78,0.00015589,2]
[353412989,1739818260838,-541.88,0.00015589,2]
[353412991,1739818260849,-625.34,0.00015589,2]
[353412993,1739818260859,-962.89,0.00015589,2]
[353412995,1739818260869,-1698.84,0.00015589,2]
[353412997,1739818260880,-4840.58,0.00015589,2]
[353412999,1739818260893,-627.09,0.00015589,2]
[353413001,1739818260903,-556.25,0.00015589,2]
[353413003,1739818260913,-1191.76,0.00015589,2]
[353413005,1739818260923,-9446.64498427,0.00015589,2]
[353413007,1739818260932,-993.86,0.00015589,2]
[353413009,1739818260942,-510.18,0.00015589,2]
[353413011,1739818260952,-531.19,0.00015589,2]
[353413013,1739818260962,-150.0,0.000156,4]
[353413015,1739818260972,-199.79701515,0.00015685,2]
[353413017,1739818260982,-199.77218898,0.00015685,2]
[353413019,1739818260992,-199.78506604,0.00015685,2]
[353413021,1739818261002,-199.6575464,0.00015685,2]
[353413023,1739818261011,-500.0,0.00015685,2]
[353413025,1739818261021,-199.79704592,0.00015685,2]
[353413027,1739818261030,-200.29099289,0.00015685,2]
[353413028,1739818261040,-788.49384026,0.00015687,2]
[353413030,1739818261050,-3690.2900953,0.00015689,2]
[353413033,1739818261060,-788.49384026,0.00015787,2]
[353413035,1739818261070,-153.0,0.00015808,2]
[353413036,1739818261079,-153.0,0.00015808,2]
[353413038,1739818261088,-310.2280238,0.00015808,2]
[353413040,1739818261098,-153.0,0.00015808,2]
[353413042,1739818261107,-342.0,0.0001581,2]
[353413044,1739818261116,-150.0,0.0001582,4]
[353413046,1739818261126,-2451.42546737,0.00015876,2]
[353413048,1739818261135,-788.49384026,0.00015887,2]
[353413050,1739818261147,-151.0,0.000159,2]
[353413052,1739818261157,-500.0,0.00015959,2]
[353413055,1739818261172,-788.49384026,0.00015987,2]
[353413058,1739818261187,-14785.17061266,0.0001599,2]
[353413060,1739818261197,-189.0,0.00016,2]
[353413062,1739818261206,-9338.06530084,0.00016,2]
[353413064,1739818261216,-3000.0,0.00016,2]
[353413066,1739818261226,-166.465699,0.00016,4]
[353413068,1739818261236,-5000.0,0.00016,7]
[353413070,1739818261246,-5000.0,0.00016,7]
[353413072,1739818261256,-5000.0,0.00016,7]
[353413074,1739818261266,-5000.0,0.00016,7]
[353413076,1739818261276,-5000.0,0.00016,7]
[353413078,1739818261286,-5000.0,0.00016,7]
[353413080,1739818261295,-5000.0,0.00016,7]
[353413082,1739818261305,-5000.0,0.00016,7]
[353413084,1739818261315,-2000.00908278,0.00016,7]
[353413086,1739818261324,-196.397687,0.00016,2]
[353413088,1739818261334,-196.397695,0.00016,2]
[353413090,1739818261344,-160.720171,0.00016,4]
[353413092,1739818261354,-3000.0,0.0001601,2]
[353413094,1739818261364,-3000.0,0.0001602,2]
[353413097,1739818261373,-3000.0,0.0001603,2]
[353413099,1739818261383,-3000.0,0.0001604,2]
[353413101,1739818261395,-3000.0,0.0001605,2]
[353413103,1739818261405,-3690.2900953,0.00016058,2]
[353413105,1739818261416,-3000.0,0.0001606,2]
[353413107,1739818261430,-3000.0,0.0001607,2]
[353413109,1739818261440,-3000.0,0.0001608,2]
[353413111,1739818261450,-788.49384026,0.00016087,2]
[353413113,1739818261461,-3000.0,0.0001609,2]
[353413115,1739818261471,-3000.0,0.000161,2]
[353413117,1739818261480,-6234.85345764,0.000161,2]
[353413119,1739818261490,-3000.0,0.0001611,2]
[353413136,1739818261632,-3000.0,0.0001612,2]
[353413138,1739818261644,-3000.0,0.0001613,2]
[353413140,1739818261654,-3000.0,0.0001614,2]
[353413142,1739818261664,-3000.0,0.0001615,2]
[353413144,1739818261674,-3000.0,0.0001616,2]
[353413146,1739818261684,-820.82,0.00016164,2]
[353413148,1739818261694,-3000.0,0.0001617,2]
[353413150,1739818261704,-3000.0,0.0001618,2]
[353413152,1739818261717,-788.49384026,0.00016187,2]
[353413154,1739818261726,-3000.0,0.0001619,2]
[353413156,1739818261736,-3000.0,0.000162,2]
[353413158,1739818261746,-3000.0,0.0001621,2]
[353413161,1739818261755,-3000.0,0.0001622,2]
[353413163,1739818261765,-1500.0,0.00016222,2]
[353413165,1739818261774,-500.0,0.00016222,2]
[353413167,1739818261784,-1500.0,0.00016222,2]
[353413169,1739818261793,-6326.12101832,0.00016227,2]
[353413171,1739818261806,-285.41699059,0.00016227,2]
[353413173,1739818261818,-9667.50262231,0.00016227,2]
[353413177,1739818261846,-538.542512,0.00013863,2]
[353413179,1739818261856,-500.0,0.00013945,2]
[353413182,1739818261867,-150.0,0.0001582,4]
[353413184,1739818261877,-2920.52055548,0.00016227,2]
[353413186,1739818261890,-720.62045219,0.00016227,2]
[353413255,1739819001598,610.06241657,0.0002,120]
[353413256,1739819049784,1000.0,0.00019,120]
[353413259,1739819131141,-250.0,0.00010578,2]
[353413260,1739819131166,-271.51200655,0.00010685,2]
[353413267,1739819230086,-150.27516694,0.00010499,2]
[353413268,1739819249084,-149.72483306,0.00010499,2]
[353413269,1739819249109,-9237.71632726,0.000105,3]
[353413270,1739819249137,-859.8053503,0.000105,3]
[353413273,1739819353232,-5303.99932004,0.00010478,2]
[353413274,1739819353254,-300.0,0.00010499,2]
[353413275,1739819353456,-15802.9335846,0.000105,3]
[353413276,1739819363102,-382.0947232,0.000105,3]
[353413277,1739819363123,-128.48799345,0.00010685,2]
[353413278,1739819363147,-154.82281241,0.00011543,2]
[353413279,1739819371141,-265.17718759,0.00011543,2]
[353413280,1739819371164,-24900.0,0.00012033,2]
[353413281,1739819371185,-500.0,0.00012585,2]
[353413282,1739819371206,-487.5098923,0.00012673,2]
[353413283,1739819371227,-587.0,0.00012691,2]
[353413284,1739819371248,-167.17528665,0.000129,2]
[353413285,1739819371270,-1000.0,0.00013,13]
[353413286,1739819371291,-2529.44758277,0.00013227,4]
[353413287,1739819404454,500.0,0.00012585,2]
[353413344,1739819432042,-424.33694533,0.00013427,2]
[353413346,1739819432055,-7014.36058745,0.00013427,2]
[353413348,1739819432065,-167.17528665,0.00013568,2]
[353413350,1739819432074,-300.0,0.00013595,2]
[353413352,1739819432084,-247.20865721,0.00013598,2]
[353413354,1739819432093,-2702.31831834,0.00013598,2]
[353413361,1739819432148,-297.68168166,0.00013598,2]
[353413363,1739819432157,-348.30081834,0.00013598,2]